fUSD/lending_fUSD_20240205
["ID","MTS","AMOUNT","RATE_DAILY","PERIOD"]
[313334769,1707165049357,-893.12,0.00043287,7]
[313334770,1707165049366,-500.0,0.00043287,7]
[313334771,1707165049376,-362.01062871,0.00043287,7]
[313334772,1707165049386,-604.12,0.00043287,7]
[313334773,1707165049395,-586.67362645,0.00043287,7]
[313334774,1707165049404,-500.0,0.00043287,5]
[313334775,1707165049412,-500.0,0.00043287,7]
[313334776,1707165049422,-500.0,0.00043287,7]
[313334777,1707165049432,-730.62,0.00043287,7]
[313334778,1707165049442,-498.73856392,0.00043287,7]
[313334779,1707165049452,-500.0,0.00043287,7]
[313334780,1707165049462,-500.0,0.00043287,7]
[313334781,1707165049472,-500.0,0.00043287,7]
[313334782,1707165049483,-500.0,0.00043287,7]
[313334783,1707165049493,-500.0,0.00043287,7]
[313334784,1707165049503,-500.0,0.00043287,7]
[313334785,1707165049513,-155.57129533,0.00043287,7]
[313334786,1707165049523,-500.0,0.00043287,7]
[313334787,1707165049533,-500.0,0.00043287,7]
[313334788,1707165049544,-500.0,0.00043287,5]
[313334789,1707165049556,-1675.29,0.00043287,7]
[313334790,1707165049566,-506.21,0.00043287,7]
[313334791,1707165049576,-500.0,0.00043287,7]
[313334792,1707165049585,-500.0,0.00043287,7]
[313334793,1707165049596,-500.0,0.00043287,7]
[313334794,1707165049605,-500.0,0.00043287,7]
[313334795,1707165049614,-500.0,0.00043287,7]
[313334796,1707165049626,-500.0,0.00043287,7]
[313334797,1707165049636,-1000.0,0.000434,2]
[313334798,1707165049646,-153.51,0.000434,4]
[313334799,1707165049656,-153.51,0.000434,4]
[313334800,1707165049665,-153.51,0.000434,4]
[313334801,1707165049675,-153.51,0.000434,4]
[313334802,1707165049684,-206.0,0.00043432,10]
[313334803,1707165049694,-155.70879879,0.00043609,2]
[313334804,1707165049703,-200.0,0.00043664,7]
[313334805,1707165049713,-98911.1842578,0.00043826,10]
[313334806,1707165049722,-500.0,0.00043835,7]
[313334807,1707165049732,-500.0,0.00043835,7]
[313334808,1707165049741,-500.0,0.00043835,7]
[313334809,1707165049751,-344.5018608,0.00043835,7]
[313334810,1707165049760,-642.14466458,0.00043835,7]
[313334811,1707165049770,-558.77668038,0.00043835,7]
[313334812,1707165049780,-500.0,0.00043835,7]
[313334813,1707165049789,-500.0,0.00043835,7]
[313334814,1707165049801,-500.0,0.00043835,7]
[313334815,1707165049811,-500.0,0.00043835,7]
[313334816,1707165049821,-500.0,0.00043835,7]
[313334817,1707165049831,-500.0,0.00043835,7]
[313334818,1707165049841,-500.0,0.00043835,7]
[313334819,1707165049850,-500.0,0.00043835,7]
[313334820,1707165049860,-700.86,0.00043835,7]
[313334821,1707165049869,-1267.57,0.00043835,7]
[313334822,1707165049879,-500.0,0.00043835,7]
[313334823,1707165049889,-737.28,0.00043835,7]
[313334824,1707165049898,-2278.55,0.00043835,7]
[313334825,1707165049908,-500.0,0.00043835,7]
[313334826,1707165049917,-500.0,0.00043835,7]
[313334827,1707165049926,-500.0,0.00043835,7]
[313334828,1707165049936,-500.0,0.00043835,7]
[313334829,1707165049945,-500.0,0.00043835,7]
[313334830,1707165049955,-500.0,0.00043835,7]
[313334831,1707165049965,-756.06,0.00043835,7]
[313334832,1707165049974,-500.0,0.00043835,7]
[313334833,1707165049984,-500.0,0.00043835,7]
[313334834,1707165049994,-500.0,0.00043835,7]
[313334835,1707165050003,-309.85419592,0.00043835,7]
[313334836,1707165050013,-500.0,0.00043835,7]
[313334837,1707165050023,-500.0,0.00043835,7]
[313334838,1707165050033,-500.0,0.00043835,7]
[313334839,1707165050043,-893.12,0.00043835,7]
[313334840,1707165050056,-500.0,0.00043835,7]
[313334841,1707165050067,-604.12,0.00043835,7]
[313334842,1707165050078,-500.0,0.00043835,5]
[313334843,1707165050089,-302.22851972,0.00043835,7]
[313334844,1707165050100,-540.69380096,0.00043835,7]
[313334845,1707165050111,-730.62,0.00043835,7]
[313334846,1707165050121,-500.0,0.00043835,7]
[313334847,1707165050133,-500.0,0.00043835,7]
[313334848,1707165050144,-500.0,0.00043835,7]
[313334849,1707165050155,-500.0,0.00043835,7]
[313334850,1707165050166,-537.1107045,0.00043835,7]
[313334851,1707165050178,-548.21619987,0.00043835,7]
[313334852,1707165050189,-172.51278034,0.00043835,7]
[313334853,1707165050199,-500.0,0.00043835,7]
[313334854,1707165050211,-500.0,0.00043835,5]
[313334855,1707165050222,-1675.29,0.00043835,7]
[313334856,1707165050233,-506.21,0.00043835,7]
[313334857,1707165050243,-500.0,0.00043835,7]
[313334858,1707165050253,-280.79699613,0.00043835,7]
[313334859,1707165050263,-590.41228515,0.00043835,7]
[313334860,1707165050274,-500.0,0.00043835,7]
[313334861,1707165050284,-500.0,0.00043835,7]
[313334862,1707165050297,-500.0,0.00043835,7]
[313334863,1707165050308,-1620.68,0.00043836,15]
[313334864,1707165050318,-244.0,0.0004389,3]
[313334865,1707165050328,-152.0,0.00043994,3]
[313334866,1707165050337,-50000.0,0.00044,24]
[313334867,1707165050347,-807.4482805,0.00044,120]
[313334868,1707165050357,-600.0,0.00044237,2]
[313334869,1707165050367,-500.0,0.00044383,7]
[313334870,1707165050377,-500.0,0.00044383,7]
[313334871,1707165050387,-500.0,0.00044383,7]
[313334872,1707165050397,-500.0,0.00044383,7]
[313334873,1707165050406,-500.0,0.00044383,7]
[313334874,1707165050419,-500.0,0.00044383,7]
[313334875,1707165050428,-500.0,0.00044383,7]
[313334876,1707165050438,-500.0,0.00044383,7]
[313334877,1707165050448,-500.0,0.00044383,7]
[313334878,1707165050458,-482.12717754,0.00044383,7]
[313334879,1707165050467,-500.0,0.00044383,7]
[313334880,1707165050477,-700.86,0.00044383,7]
[313334881,1707165050487,-1267.57,0.00044383,7]
[313334882,1707165050496,-500.0,0.00044383,7]
[313334883,1707165050506,-737.28,0.00044383,7]
[313334884,1707165050516,-2278.55,0.00044383,7]
[313334885,1707165050525,-500.0,0.00044383,7]
[313334886,1707165050535,-500.0,0.00044383,7]
[313334887,1707165050545,-500.0,0.00044383,7]
[313334888,1707165050555,-500.0,0.00044383,7]
[313334889,1707165050566,-192.48873266,0.00044383,7]
[313334890,1707165050575,-500.0,0.00044383,7]
[313334891,1707165050585,-756.06,0.00044383,7]
[313334892,1707165050594,-500.0,0.00044383,7]
[313334893,1707165050604,-500.0,0.00044383,7]
[313334894,1707165050613,-500.0,0.00044383,7]
[313334895,1707165050623,-500.0,0.00044383,7]
[313334896,1707165050633,-500.0,0.00044383,7]
[313334897,1707165050643,-500.0,0.00044383,7]
[313334898,1707165050652,-893.12,0.00044383,7]
[313334899,1707165050662,-500.0,0.00044383,7]
[313334900,1707165050671,-604.12,0.00044383,7]
[313334901,1707165050680,-500.0,0.00044383,5]
[313334902,1707165050690,-730.62,0.00044383,7]
[313334903,1707165050699,-500.0,0.00044383,7]
[313334904,1707165050708,-500.0,0.00044383,7]
[313334905,1707165050718,-500.0,0.00044383,7]
[313334906,1707165050728,-500.0,0.00044383,7]
[313334907,1707165050737,-500.0,0.00044383,7]
[313334908,1707165050747,-500.0,0.00044383,5]
[313334909,1707165050757,-1675.29,0.00044383,7]
[313334910,1707165050768,-506.21,0.00044383,7]
[313334911,1707165050778,-500.0,0.00044383,7]
[313334912,1707165050788,-500.0,0.00044383,7]
[313334913,1707165050801,-500.0,0.00044383,7]
[313334914,1707165050811,-500.0,0.00044383,7]
[313334915,1707165050821,-1000.0,0.00044399,2]
[313334916,1707165050831,-1000.0,0.000444,13]
[313334917,1707165050840,-526.14582221,0.00044465,5]
[313334918,1707165050849,-2712.23100915,0.00044682,11]
[313334919,1707165050859,-175.39960558,0.000449,2]
[313334920,1707165050869,-1813.43,0.00044931,5]
[313334921,1707165050879,-500.0,0.00044931,7]
[313334922,1707165050888,-488.6208424,0.00044931,7]
[313334923,1707165050898,-500.0,0.00044931,7]
[313334924,1707165050907,-500.0,0.00044931,7]
[313334925,1707165050918,-500.0,0.00044931,7]
[313334926,1707165050927,-500.0,0.00044931,7]
[313334927,1707165050937,-412.08398144,0.00044931,7]
[313334928,1707165050947,-500.0,0.00044931,7]
[313334929,1707165050956,-500.0,0.00044931,7]
[313334930,1707165050966,-500.0,0.00044931,7]
[313334931,1707165050977,-700.86,0.00044931,7]
[313334932,1707165050987,-1267.57,0.00044931,7]
[313334933,1707165050996,-500.0,0.00044931,7]
[313334934,1707165051006,-737.28,0.00044931,7]
[313334935,1707165051016,-2278.55,0.00044931,7]
[313334936,1707165051025,-500.0,0.00044931,7]
[313334937,1707165051036,-500.0,0.00044931,7]
[313334938,1707165051046,-500.0,0.00044931,7]
[313334939,1707165051057,-500.0,0.00044931,7]
[313334940,1707165051067,-500.0,0.00044931,7]
[313334941,1707165051077,-756.06,0.00044931,7]
[313334942,1707165051088,-500.0,0.00044931,7]
[313334943,1707165051098,-500.0,0.00044931,7]
[313334944,1707165051108,-500.0,0.00044931,7]
[313334945,1707165051118,-500.0,0.00044931,7]
[313334946,1707165051129,-500.0,0.00044931,7]
[313334947,1707165051140,-500.0,0.00044931,7]
[313334948,1707165051151,-893.12,0.00044931,7]
[313334949,1707165051162,-500.0,0.00044931,7]
[313334950,1707165051312,-604.12,0.00044931,7]
[313334951,1707165051323,-500.0,0.00044931,5]
[313334952,1707165051332,-730.62,0.00044931,7]
[313334953,1707165051342,-500.0,0.00044931,7]
[313334954,1707165051352,-500.0,0.00044931,7]
[313334955,1707165051361,-238.08346989,0.00044931,7]
[313334956,1707165051371,-500.0,0.00044931,7]
[313334957,1707165051381,-500.0,0.00044931,7]
[313334958,1707165051391,-293.07493275,0.00044931,5]
[313334959,1707165051400,-1675.29,0.00044931,7]
[313334960,1707165051410,-506.21,0.00044931,7]
[313334961,1707165051419,-378.04895092,0.00044931,7]
[313334962,1707165051428,-182.3128423,0.00044931,7]
[313334963,1707165051437,-500.0,0.00044931,7]
[313334964,1707165051447,-500.0,0.00044931,7]
[313334965,1707165051456,-83429.58170239,0.0004498,10]
[313334966,1707165051474,-303.34096568,0.0004498,10]
[313334967,1707165051486,-396.74077807,0.0004498,10]
[313334968,1707165051519,-267.9653987,0.0004498,10]
[313334969,1707165051533,-14513.55541296,0.0004498,10]
[313334970,1707165051546,-6449.01458704,0.00045,35]
[313334971,1707165051561,-2977.01810696,0.00045,35]
[313334972,1707165051574,-976.97217093,0.00045,35]
[313334973,1707165051587,-4163.93474342,0.00045,35]
[313334974,1707165051600,-524.28739125,0.00045,35]
[313334975,1707165051612,-966.02090193,0.00045,35]
[313334976,1707165051625,-431.79686796,0.00045,35]
[313334977,1707165051638,-2540.39645503,0.00045,35]
[313334978,1707165051678,-1250.0,0.00033897,2]
[313334979,1707165051688,-243.59440082,0.00041095,7]
[313334980,1707165051702,-256.40559918,0.00041095,7]
[313334981,1707165051712,-2658.65000001,0.00045,35]
[313334982,1707165051725,-1547.29058807,0.00045,35]
[313334983,1707165051737,-251.88808283,0.00045,35]
[313334984,1707165051753,-24213.2320996,0.00045,35]
[313334985,1707165051767,-52299.49800497,0.00045,35]
[313334986,1707165051777,-302.73188938,0.00045,14]
[313334987,1707165051787,-1875.51819804,0.00045,10]
[313334988,1707165051798,-4815.37265911,0.00045,17]
[313334989,1707165051809,-168.83287606,0.00045,7]
[313334990,1707165051820,-189.32683899,0.00045,10]
[313334991,1707165051830,-1122.68309874,0.00045,7]
[313334992,1707165051841,-178.33333796,0.00045105,4]
[313334993,1707165051852,-671.84384222,0.00045134,4]
[313334994,1707165051864,-1479.08401008,0.00045164,4]
[313334995,1707165051875,-739.54200504,0.00045164,4]
[313334996,1707165051886,-2742.54294836,0.00045221,4]
[313334997,1707165051897,-2928.48094676,0.00045248,4]
[313334998,1707165051907,-7765.88547035,0.00045276,4]
[313334999,1707165051917,-193.71,0.00045283,2]
[313335000,1707165051928,-340.8543666,0.00045303,4]
[313335001,1707165051938,-768.29503243,0.00045329,2]
[313335002,1707165051949,-384.14751622,0.00045329,4]
[313335003,1707165051962,-808.34477007,0.00045334,7]
[313335004,1707165051973,-4462.05675809,0.00045355,4]
[313335005,1707165051984,-181.96594138,0.00045379,20]
[313335006,1707165051994,-500.0,0.00045479,7]
[313335007,1707165052005,-638.82359271,0.00045479,7]
[313335008,1707165052016,-500.0,0.00045479,7]
[313335009,1707165052026,-500.0,0.00045479,7]
[313335010,1707165052038,-500.0,0.00045479,7]
[313335011,1707165052049,-500.0,0.00045479,7]
[313335012,1707165052060,-500.0,0.00045479,7]
[313335013,1707165052071,-700.86,0.00045479,7]
[313335014,1707165052082,-1267.57,0.00045479,7]
[313335015,1707165052093,-500.0,0.00045479,7]
[313335016,1707165052104,-737.28,0.00045479,7]
[313335017,1707165052115,-2278.55,0.00045479,7]
[313335018,1707165052126,-500.0,0.00045479,7]
[313335019,1707165052137,-503.62816667,0.00045479,7]
[313335020,1707165052150,-500.0,0.00045479,7]
[313335021,1707165052161,-500.0,0.00045479,7]
[313335022,1707165052179,-500.0,0.00045479,7]
[313335023,1707165052192,-756.06,0.00045479,7]
[313335024,1707165052204,-500.0,0.00045479,7]
[313335025,1707165052216,-500.0,0.00045479,7]
[313335026,1707165052227,-500.0,0.00045479,7]
[313335027,1707165052239,-500.0,0.00045479,7]
[313335028,1707165052251,-343.58910243,0.00045479,7]
[313335029,1707165052262,-500.0,0.00045479,7]
[313335030,1707165052273,-893.12,0.00045479,7]
[313335031,1707165052284,-500.0,0.00045479,7]
[313335032,1707165052295,-604.12,0.00045479,7]
[313335033,1707165052307,-574.36025101,0.00045479,5]
[313335034,1707165052317,-730.62,0.00045479,7]
[313335035,1707165052328,-500.0,0.00045479,7]
[313335036,1707165052339,-500.0,0.00045479,7]
[313335037,1707165052351,-500.0,0.00045479,7]
[313335038,1707165052361,-601.82990238,0.00045479,7]
[313335039,1707165052374,-1675.29,0.00045479,7]
[313335040,1707165052385,-506.21,0.00045479,7]
[313335041,1707165052397,-500.0,0.00045479,7]
[313335042,1707165052408,-423.43178566,0.00045479,7]
[313335043,1707165052421,-721.95,0.000455,7]
[313335044,1707165052433,-562.08,0.000455,7]
[313335045,1707165052444,-1775.39,0.000455,7]
[313335046,1707165052456,-150.5384469,0.00045759,30]
[313335047,1707165052466,-1472.4534393,0.0004589,2]
[313335048,1707165052477,-755.56553175,0.0004589,2]
[313335049,1707165052488,-174.54150587,0.0004589,2]
[313335050,1707165052499,-208.9505522,0.0004589,2]
[313335051,1707165052510,-2163.06905651,0.0004589,2]
[313335052,1707165052520,-205.11348413,0.000459,9]
[313335053,1707165052532,-439.1395655,0.00045916,4]
[313335054,1707165052544,-91208.93613879,0.0004599,10]
[313335055,1707165052563,-7702.24811901,0.0004599,10]
[313335056,1707165052575,-362.0,0.0004599,2]
[313335057,1707165052587,-151.0,0.0004599,2]
[313335058,1707165052598,-231.55142498,0.00046,36]
[313335059,1707165052612,-770.0,0.00046,36]
[313335060,1707165052626,-375.31267016,0.00046,36]
[313335061,1707165052640,-83276.6408811,0.00046,36]
[313335062,1707165052654,-15346.49502376,0.00046,36]
[313335063,1707165052667,-435.44,0.00046,14]
[313335064,1707165052678,-150.0,0.00046,2]
[313335065,1707165052689,-176.95,0.00046,2]
[313335066,1707165052699,-1000.0,0.00046,2]
[313335067,1707165052710,-1000.0,0.00046,17]
[313335068,1707165052720,-4408.25391082,0.00046027,7]
[313335069,1707165052733,-1391.74608918,0.00046027,7]
[313335070,1707165052742,-473.79530619,0.00046027,5]
[313335071,1707165052752,-173.91503643,0.00046027,7]
[313335072,1707165052762,-500.0,0.00046027,7]
[313335073,1707165052773,-500.0,0.00046027,7]
[313335074,1707165052784,-500.0,0.00046027,7]
[313335075,1707165052795,-500.0,0.00046027,7]
[313335076,1707165052806,-191.33841543,0.00046027,7]
[313335077,1707165052822,-277.00956143,0.00046027,7]
[313335078,1707165052839,-31.65202314,0.00046027,7]
[313335079,1707165052849,-700.86,0.00046027,7]
[313335080,1707165052859,-1267.57,0.00046027,7]
[313335081,1707165052869,-500.0,0.00046027,7]
[313335082,1707165052879,-284.52400352,0.00046027,7]
[313335083,1707165052891,-452.75599648,0.00046027,7]
[313335084,1707165052900,-2278.55,0.00046027,7]
[313335085,1707165052911,-500.0,0.00046027,7]
[313335086,1707165052921,-500.0,0.00046027,7]
[313335087,1707165052931,-500.0,0.00046027,7]
[313335088,1707165052941,-500.0,0.00046027,7]
[313335089,1707165052950,-756.06,0.00046027,7]
[313335090,1707165052960,-500.0,0.00046027,7]
[313335091,1707165052970,-500.0,0.00046027,7]
[313335092,1707165052981,-500.0,0.00046027,7]
[313335093,1707165052991,-500.0,0.00046027,7]
[313335094,1707165053001,-500.0,0.00046027,7]
[313335095,1707165053011,-893.12,0.00046027,7]
[313335096,1707165053022,-300.67693471,0.00046027,7]
[313335097,1707165053044,-608.35712949,0.00041595,7]
[313335098,1707165080990,2132.35,0.00022444,2]
[313335100,1707165218902,185.63,0.00022066,2]
[313335101,1707165535486,765.92152862,0.00022066,4]
[313335121,1707166231901,-662.945,0.00022999,2]
[313335124,1707166231914,-219.12985924,0.00022999,2]
[313335126,1707166231923,-221.13,0.00023,2]
[313335128,1707166231933,-324.08880532,0.00025,2]
[313335130,1707166231942,-69.4492686,0.00026726,2]
[313335132,1707166231954,-1666.20206684,0.00026726,2]
[313335135,1707166231965,-493.89826456,0.00026726,2]
[313335137,1707166231974,-181.31569271,0.00027323,2]
[313335138,1707166231983,-3.17070566,0.00027423,2]
[313335141,1707166231994,-972.40604228,0.00027423,2]
[313335143,1707166232006,-24.42325206,0.00027423,2]
[313335145,1707166232015,-181.3156927,0.00028353,2]
[313335147,1707166232024,-150.0,0.0002837,2]
[313335149,1707166232033,-1026.03966714,0.00028371,2]
[313335153,1707166232062,-1288.42262289,0.00028371,2]
[313335154,1707166232071,-9380.02163579,0.00028371,2]
[313335155,1707166232083,-7544.91301688,0.00028371,2]
[313335156,1707166232094,-668.952,0.00028371,2]
[313335157,1707166232105,-2055.44954774,0.00028371,2]
[313335158,1707166232116,-670.59473924,0.00028371,2]
[313335159,1707166232128,-422.93054561,0.00028371,2]
[313335160,1707166232140,-2065.45835351,0.00028371,2]
[313335161,1707166232151,-6378.12288603,0.00028371,2]
[313335162,1707166232162,-11737.84626998,0.00028371,2]
[313335163,1707166232174,-1153.450029,0.00028371,2]
[313335164,1707166232185,-742.44,0.00028371,2]
[313335167,1707166232197,-322.84270231,0.00028371,2]
[313335169,1707166232209,-16.52977622,0.00028371,2]
[313335171,1707166232218,-296.47071973,0.00028372,2]
[313335173,1707166232227,-2037.05,0.00028372,2]
[313335175,1707166232236,-865.83,0.00028372,2]
[313335177,1707166232245,-381.5,0.00028372,2]
[313335180,1707166232254,-499.99,0.00028372,2]
[313335183,1707166232264,-812.98027531,0.00028372,2]
[313335184,1707166232276,-1520.15122887,0.00028372,2]
[313335186,1707166232287,-815.6374002,0.00028372,2]
[313335202,1707166237916,-1115.3846688,0.00028372,2]
[313335203,1707166237928,-542.18642682,0.00028372,2]
[313335204,1707166237937,-339.41312291,0.00028373,2]
[313335205,1707166237949,-1362.44103371,0.00028373,2]
[313335206,1707166237961,-93.25584338,0.00028373,2]
[313335207,1707166237970,-2813.98,0.00029009,2]
[313335208,1707166237979,-181.3156927,0.00029383,2]
[313335209,1707166237989,-155.0,0.0003,2]
[313335210,1707166237998,-500.0,0.0003,2]
[313335211,1707166238008,-153.51,0.00030403,2]
[313335212,1707166238017,-181.3156927,0.00030413,2]
[313335213,1707166238026,-1530.79241822,0.000313,2]
[313335214,1707166238039,-2556.20758178,0.000313,2]
[313335215,1707166238047,-181.3156927,0.00031442,2]
[313335216,1707166238057,-1000.0,0.00032163,2]
[313335217,1707166238066,-185.63,0.0003221,2]
[313335218,1707166238077,-278.51,0.00032289,2]
[313335219,1707166238086,-150.0,0.000323,2]
[313335220,1707166238095,-155.17,0.00032467,2]
[313335221,1707166238104,-181.3156927,0.00032472,2]
[313335222,1707166238113,-153.51,0.00032934,2]
[313335223,1707166238122,-155.17,0.00033031,2]
[313335224,1707166238131,-3.17103282,0.00033192,2]
[313335225,1707166238143,-1203.70896718,0.00033192,2]
[313335226,1707166238153,-181.3156927,0.00033502,2]
[313335227,1707166238162,-155.17,0.00033595,2]
[313335228,1707166238171,-1542.83936521,0.00033896,4]
[313335229,1707166238180,-278.51,0.00033932,2]
[313335230,1707166238189,-155.17,0.00034159,2]
[313335231,1707166238199,-200.0,0.00034231,2]
[313335232,1707166238209,-181.3156927,0.00034532,2]
[313335233,1707166238219,-150.0,0.00034548,10]
[313335234,1707166238229,-281.7817,0.00034674,2]
[313335235,1707166238238,-11266.33863511,0.00034774,2]
[313335236,1707166238250,-402.44575724,0.00034774,2]
[313335237,1707166238262,-1385.73435,0.00034774,2]
[313335238,1707166238274,-343.10265342,0.00034774,2]
[313335239,1707166238294,-51118.20071494,0.00034774,2]
[313335240,1707166238306,-30740.15868929,0.00034774,2]
[313335241,1707166238316,-2023.341,0.00034874,2]
[313335242,1707166238327,-16928.6197083,0.00034874,2]
[313335243,1707166238346,-375.78379918,0.00034874,2]
[313335245,1707166238404,-771.07115909,0.00034874,2]
[313335246,1707166238415,-300.0,0.00034874,2]
[313335247,1707166238427,-613.02158694,0.00034874,2]
[313335248,1707166238438,-358.48667185,0.00034874,2]
[313335249,1707166238450,-475.32307464,0.00034874,2]
[313335250,1707166238459,-24.67692536,0.00035,2]
[313335251,1707166238471,-274.06673411,0.00035,2]
[313335252,1707166238482,-201.25634053,0.00035,2]
[313335253,1707166238491,-153.51,0.00035464,2]
[313335254,1707166238500,-181.3156927,0.00035562,2]
[313335255,1707166238509,-278.51,0.00035576,2]
[313335256,1707166238519,-299.2518509,0.00036,4]
[313335257,1707166238529,-178.86,0.00036102,2]
[313335258,1707166238540,-896.51247167,0.00036183,2]
[313335259,1707166238552,-103.48752833,0.00036183,2]
[313335260,1707166238561,-541.97374566,0.0003622,2]
[313335261,1707166238573,-1958.02625434,0.0003622,2]
[313335262,1707166238583,-186.6,0.0003631,2]
[313335263,1707166238592,-231.71780132,0.0003632,15]
[313335264,1707166238603,-17922.80937578,0.0003632,15]
[313335265,1707166238612,-4222.78380882,0.0003632,15]
[313335266,1707166238624,-2121.53201396,0.0003632,15]
[313335267,1707166240551,-8759.3820718,0.0003632,15]
[313335268,1707166240565,-484.159975,0.0003632,15]
[313335269,1707166241317,-2065.12051418,0.0003632,15]
[313335270,1707166241376,-11090.58767484,0.0003632,15]
[313335271,1707166241433,-1169.38468263,0.0003632,15]
[313335272,1707166241445,-1765.39271385,0.0003632,15]
[313335273,1707166241463,-479.61376674,0.0003632,15]
[313335274,1707166241562,-127.84119982,0.0003632,15]
[313335275,1707166241572,-250.02555933,0.0003632,15]
[313335313,1707166242952,-16814.39919535,0.0003632,15]
[313335332,1707166243115,-26062.56268096,0.0003632,15]
[313335334,1707166243126,-250.0,0.00036548,2]
[313335336,1707166243135,-250.0,0.00036548,2]
[313335338,1707166243145,-250.0,0.00036548,111]
[313335340,1707166243154,-181.3156927,0.00036592,2]
[313335342,1707166243168,-167.0,0.0003715,2]
[313335344,1707166243178,-278.51,0.0003722,2]
[313335346,1707166243187,-1000.0,0.000373,2]
[313335349,1707166243197,-155.93305506,0.00037436,4]
[313335351,1707166243207,-181.3156927,0.00037621,2]
[313335352,1707166243217,-153.39,0.000377,3]
[313335354,1707166243226,-153.51,0.00037994,2]
[313335356,1707166243236,-150.81,0.00038356,2]
[313335358,1707166243245,-181.3156927,0.00038651,2]
[313335360,1707166243255,-278.51,0.00038864,2]
[313335362,1707166243266,-161.66895405,0.0003888,2]
[313335364,1707166243276,-161.66895401,0.0003888,2]
[313335367,1707166243285,-161.66895401,0.0003888,2]
[313335368,1707166243296,-181.3156927,0.00039681,2]
[313335371,1707166243305,-5000.0,0.0004,30]
[313335373,1707166243315,-1000.0,0.0004,2]
[313335374,1707166243325,-500.0,0.0004,2]
[313335376,1707166243335,-1000.0,0.00040203,2]
[313335380,1707166243344,-161.66895401,0.00040216,2]
[313335382,1707166243354,-206.0,0.00040432,10]
[313335384,1707166243363,-153.39,0.000405,4]
[313335387,1707166243373,-153.39,0.000405,4]
[313335389,1707166243383,-278.51,0.00040508,2]
[313335393,1707166243393,-153.51,0.00040524,2]
[313335395,1707166243402,-181.3156927,0.00040711,2]
[313335398,1707166243412,-1036.64985367,0.00040763,3]
[313335401,1707166243421,-184.81576064,0.00040794,2]
[313335404,1707166243430,-1094.71048327,0.0004081,3]
[313335408,1707166243441,-1000.0,0.00040893,2]
[313335410,1707166243451,-526.14582221,0.00040894,5]
[313335414,1707166243461,-1000.0,0.00040959,2]
[313335416,1707166243470,-879.4,0.00040983,10]
[313335419,1707166243479,-170.60712626,0.00040983,2]
[313335422,1707166243488,-1000.0,0.00040986,2]
[313335424,1707166243498,-676.53921369,0.00040992,5]
[313335426,1707166243507,-1844.68218607,0.00040992,4]
[313335428,1707166243516,-265210.36608924,0.00040993,2]
[313335431,1707166243531,-1486.16000651,0.00040993,2]
[313335435,1707166243547,-8621.79904726,0.00040993,2]
[313335563,1707166246119,-31473.57798102,0.00036319,4]
[313335564,1707166246129,-84379.08616988,0.00040993,2]
[313335710,1707166481590,250.0,0.00022,2]
[313335711,1707166659542,152.50350582,0.00022,2]
[313335712,1707166663473,176.95,0.00022,2]
[313335713,1707166664760,176.95,0.00022548,2]
[313335714,1707166678237,504.85247061,0.00022,2]
[313335715,1707166783678,698.43245653,0.00022,4]
[313335716,1707166854245,522.08404486,0.00022288,2]
[313335717,1707166870244,522.08404486,0.0002228,2]
[313335718,1707166872772,299.99,0.00022755,7]
[313335719,1707166888241,522.08404486,0.0002228,2]
[313335720,1707166906241,272.00578737,0.00022339,2]
[313335721,1707166924244,272.00578737,0.00022339,2]